bitfinex/quotes_SOLUSD_20240616
["timestamp","ask_amount","ask_price","bid_price","bid_amount"]
[1718529328258,5.67,143.94,143.93,25.7065]
[1718529330476,5.67,143.94,143.93,7.7118]
[1718529330974,5.67,143.94,143.93,7.7119]
[1718529331570,5.67,143.94,143.93,25.7066]
[1718529332388,5.67,143.94,143.93,7.7119]
[1718529332874,6.35,143.94,143.93,2.5706]
[1718529333066,6.35,143.94,143.92,25.7076]
[1718529334376,6.35,143.94,143.92,25.7079]
[1718529334579,6.35,143.94,143.92,15.4248]
[1718529334761,6.35,143.94,143.92,7.7123]
[1718529335465,6.35,143.94,143.92,2.5707]
[1718529335657,0.34,143.93,143.92,2.5707]
[1718529337383,0.34,143.93,143.92,7.7124]
[1718529337885,0.34,143.93,143.92,15.425]
[1718529338584,0.34,143.93,143.92,25.7084]
[1718529338585,7.5344827,143.93,143.92,25.7084]
[1718529339085,7.5344827,143.93,143.92,15.425]
[1718529339281,7.5344827,143.93,143.92,25.7084]
[1718529339570,7.5344827,143.93,143.87,17.4879677]
[1718529339771,5.67,143.91,143.9,2.5712]
[1718529339963,5.67,143.91,143.9,7.7136]
[1718529340162,5.67,143.91,143.89,17.9995]
[1718529340163,5.84,143.91,143.89,2.5713]
[1718529340462,0.51,143.9,143.89,2.5713]
[1718529340674,0.51,143.9,143.89,7.7141]
[1718529340984,0.51,143.9,143.89,15.4283]
[1718529341157,0.51,143.9,143.89,2.5713]
[1718529341158,6.18,143.9,143.89,2.5713]
[1718529341552,6.18,143.9,143.89,7.7141]
[1718529341778,0.17,143.89,143.87,0.8633677]
[1718529341959,5.84,143.88,143.87,0.8633677]
[1718529342160,6.18,143.88,143.87,0.8633677]
[1718529342359,6.35,143.88,143.87,0.8633677]
[1718529342575,8.9215,143.88,143.87,0.8633677]
[1718529342751,6.35,143.88,143.87,0.8633677]
[1718529343154,0.51,143.88,143.87,0.8633677]
[1718529343479,6.35,143.88,143.87,0.8633677]
[1718529344683,32.0656,143.88,143.87,0.8633677]
[1718529345282,46.3956,143.88,143.87,0.8633677]
[1718529345485,52.0656,143.88,143.87,0.8633677]
[1718529347803,28.9215,143.88,143.87,0.8633677]
[1718529347977,41.7793,143.88,143.87,0.8633677]
[1718529348164,0.68,143.88,143.87,0.8633677]
[1718529348359,7.7143,143.89,143.87,0.8633677]
[1718529348563,5.67,143.88,143.87,0.8633677]
[1718529349589,6.35,143.88,143.87,0.8633677]
[1718529349796,30.3404491,143.89,143.87,0.8633677]
[1718529349797,7.1977491,143.89,143.87,0.8633677]
[1718529349981,9.7691491,143.89,143.87,0.8633677]
[1718529350274,5.67,143.88,143.87,0.8633677]
[1718529351072,8.4115,143.88,143.87,0.8633677]
[1718529351286,0.34,143.88,143.87,0.8633677]
[1718529351483,0.17,143.88,143.87,0.8633677]
[1718529351689,6.18,143.88,143.87,0.8633677]
[1718529351869,9.7691491,143.89,143.87,0.8633677]
[1718529352287,7.1977491,143.89,143.87,0.8633677]
[1718529352796,9.7691491,143.89,143.87,0.8633677]
[1718529352995,7.1977491,143.89,143.87,0.8633677]
[1718529353307,9.7691491,143.89,143.87,0.8633677]
[1718529353668,2.7415,143.88,143.87,0.8633677]
[1718529354001,8.3946,143.88,143.87,0.8633677]
[1718529354185,16.1093,143.88,143.87,0.8633677]
[1718529354372,8.3946,143.88,143.87,0.8633677]
[1718529354568,26.3956,143.88,143.87,0.8633677]
[1718529354874,18.6809,143.88,143.87,0.8633677]
[1718529355076,8.3946,143.88,143.87,0.8633677]
[1718529355307,3.2515,143.88,143.87,0.8633677]
[1718529355604,6.18,143.88,143.87,0.8633677]
[1718529355972,0.51,143.88,143.87,0.8633677]
[1718529356188,6.18,143.88,143.87,0.8633677]
[1718529359718,8.7515,143.88,143.87,0.8633677]
[1718529359950,32.0656,143.88,143.87,0.8633677]
[1718529360985,14.0646,143.88,143.87,0.8633677]
[1718529361186,3.2515,143.88,143.87,0.8633677]
[1718529361608,8.9215,143.88,143.87,0.8633677]
[1718529361792,6.35,143.88,143.87,0.8633677]
[1718529361996,8.9215,143.88,143.87,0.8633677]
[1718529363391,21.7793,143.88,143.87,0.8633677]
[1718529363591,32.0656,143.88,143.87,0.8633677]
[1718529364601,26.3956,143.88,143.87,0.8633677]
[1718529364901,32.0656,143.88,143.87,0.8633677]
[1718529365282,8.9215,143.88,143.87,0.8633677]
[1718529365487,0.68,143.88,143.87,0.8633677]
[1718529365916,6.35,143.88,143.87,0.8633677]
[1718529366225,8.9215,143.88,143.87,0.8633677]
[1718529366429,21.7793,143.88,143.87,0.8633677]
[1718529367004,6.35,143.88,143.87,0.8633677]
[1718529367206,8.9215,143.88,143.87,0.8633677]
[1718529369406,6.35,143.88,143.87,0.8633677]
[1718529369833,3.2515,143.88,143.87,0.8633677]
[1718529370338,8.3946,143.88,143.87,0.8633677]
[1718529370843,3.2515,143.88,143.87,0.8633677]
[1718529372516,8.3946,143.88,143.87,0.8633677]
[1718529373332,26.3956,143.88,143.87,0.8633677]
[1718529374804,18.6809,143.88,143.87,0.8633677]
[1718529375009,8.3946,143.88,143.87,0.8633677]
[1718529379524,16.1093,143.88,143.87,0.8633677]
[1718529380245,26.3956,143.88,143.87,0.8633677]
[1718529380543,32.0656,143.88,143.87,0.8633677]
[1718529385652,14.0646,143.88,143.87,0.8633677]
[1718529386020,8.9215,143.88,143.87,0.8633677]
[1718529386554,14.0646,143.88,143.87,0.8633677]
[1718529390446,32.0656,143.88,143.87,0.8633677]
[1718529391161,52.0656,143.88,143.87,0.8633677]
[1718529392538,28.9215,143.88,143.87,0.8633677]
[1718529393043,34.0646,143.88,143.87,0.8633677]
[1718529393466,20.34,143.88,143.87,0.8633677]
[1718529393774,7.1977491,143.89,143.87,0.8633677]
[1718529393930,7.1977491,143.89,143.87,3.4349677]
[1718529394259,7.1977491,143.89,143.88,25.7156]
[1718529394557,15.43779568,143.92,143.89,7.714]
[1718529394936,15.43779568,143.92,143.89,2.5713]
[1718529395133,2.571,143.91,143.88,7.7143]
[1718529395536,13.20689568,143.92,143.9,2.5712]
[1718529395756,9.76779568,143.92,143.89,2.5713]
[1718529395928,7.19689568,143.92,143.89,7.714]
[1718529396145,15.43769568,143.92,143.89,7.714]
[1718529396348,7.19689568,143.92,143.89,15.4281]
[1718529396569,9.76769568,143.92,143.89,7.714]
[1718529396763,9.76769568,143.92,143.89,2.5713]
[1718529397888,14.90939568,143.92,143.89,2.5713]
[1718529398660,9.76769568,143.92,143.89,2.5713]
[1718529399060,9.76769568,143.92,143.89,7.7141]
[1718529399456,7.19689568,143.92,143.88,20.85]
[1718529399653,7.19689568,143.92,143.9,15.4267]
[1718529399855,13.3816,143.94,143.9,23.1406]
[1718529400156,28.2888658,143.94,143.9,25.7116]
[1718529400384,2.5707,143.93,143.9,7.7132]
[1718529400694,15.4241,143.93,143.9,0.35686889]
[1718529401489,15.4241,143.93,143.9,2.92806889]
[1718529402362,7.7121,143.93,143.9,2.92806889]
[1718529402566,15.4242,143.93,143.9,0.35686889]
[1718529402781,25.7071,143.93,143.9,0.35686889]
[1718529402978,25.7071,143.93,143.9,2.92806889]
[1718529403199,7.7122,143.93,143.9,2.92806889]
[1718529403660,2.5708,143.93,143.9,8.07036889]
[1718529403861,7.7121,143.93,143.9,2.92806889]
[1718529404061,15.4242,143.93,143.9,2.92806889]
[1718529404298,15.4242,143.93,143.9,2.5712]
[1718529404669,2.5708,143.92,143.89,7.7137]
[1718529405087,2.5708,143.92,143.89,15.4279]
[1718529405598,25.707,143.93,143.9,2.5711]
[1718529405766,7.1957658,143.94,143.92,2.5708]
[1718529405970,9.7662658,143.94,143.91,25.7096]
[1718529406192,7.1957658,143.94,143.92,2.5708]
[1718529406367,9.7662658,143.94,143.92,2.5708]
[1718529406569,9.7662658,143.94,143.91,7.7129]
[1718529406769,9.7662658,143.94,143.91,15.426]
[1718529407370,22.6188658,143.94,143.91,2.5709]
[1718529407570,32.9009658,143.94,143.91,2.5709]
[1718529408171,7.1957658,143.94,143.93,7.7119]
[1718529408373,7.7104,143.96,143.93,7.7119]
[1718529408693,5.1406,143.95,143.92,5.1415]
[1718529408872,7.711,143.95,143.92,7.7123]
[1718529409278,15.422,143.95,143.92,2.5708]
[1718529410272,2.5705,143.94,143.92,2.5708]
[1718529410704,25.7035,143.95,143.92,2.5708]
[1718529411105,25.7035,143.95,143.92,3.70464857]
[1718529411406,2.5705,143.94,143.92,3.70464857]
[1718529411610,30.30982309,143.96,143.93,2.5706]
[1718529411909,30.30982309,143.96,143.92,3.70464857]
[1718529411910,7.7111,143.95,143.92,3.70464857]
[1718529412076,2.5705,143.94,143.92,3.70464857]
[1718529412404,15.4221,143.95,143.92,3.70464857]
[1718529412902,2.5705,143.94,143.92,3.70464857]
[1718529413102,2.5705,143.94,143.92,1.13384857]
[1718529413404,25.7034,143.95,143.92,2.5708]
[1718529413598,7.7111,143.95,143.92,7.7125]
[1718529414604,15.4221,143.95,143.92,2.5708]
[1718529414987,7.7111,143.95,143.92,7.7125]
[1718529415201,2.5704,143.95,143.93,1.38941305]
[1718529416504,7.711,143.95,143.92,7.7124]
[1718529416804,7.711,143.95,143.92,2.5707]
[1718529417199,15.422,143.95,143.92,2.5707]
[1718529417592,25.7033,143.95,143.92,2.5707]
[1718529417901,2.5705,143.94,143.92,2.5707]
[1718529418686,35.98012309,143.96,143.92,12.8542]
[1718529418892,2.5703,143.95,143.93,2.5706]
[1718529419203,9.74812309,143.96,143.93,23.1359]
[1718529419403,22.59902309,143.96,143.93,2.5706]
[1718529419587,2.5703,143.95,143.93,2.5706]
[1718529419911,32.87972309,143.96,143.93,2.5706]
[1718529420281,2.5703,143.95,143.93,2.5706]
[1718529421909,2.5706,143.94,143.91,25.7095]
[1718529422119,25.704,143.95,143.92,2.5708]
[1718529422288,7.7113,143.95,143.92,15.425]
[1718529422490,2.5704,143.95,143.93,2.5706]
[1718529423111,7.17792309,143.96,143.94,7.7114]
[1718529423416,7.17792309,143.96,143.95,2.5703]
[1718529423723,2.5701,143.96,143.94,3.64152207]
[1718529423892,7.7101,143.97,143.94,16.49392207]
[1718529424088,2.5701,143.97,143.95,2.5703]
[1718529424289,9.74717327,143.98,143.96,2.57]
[1718529424894,14.88677327,143.98,143.95,25.7025]
[1718529425412,7.71,143.97,143.94,15.4225]
[1718529425710,32.87597327,143.98,143.95,7.7109]
[1718529425916,32.87597327,143.98,143.95,15.4219]
[1718529426217,2.57,143.97,143.95,2.5703]
[1718529426421,2.57,143.97,143.95,7.7109]
[1718529427589,32.87597327,143.98,143.95,7.7109]
[1718529427821,14.88707327,143.98,143.96,2.5701]
[1718529429126,14.88707327,143.98,143.95,25.7028]
[1718529429293,22.59647327,143.98,143.95,25.7028]
[1718529429693,14.88707327,143.98,143.96,2.5701]
[1718529430520,9.74727327,143.98,143.96,2.5701]
[1718529431020,9.74727327,143.98,143.96,7.7104]
[1718529431332,7.17737327,143.98,143.96,15.4208]
[1718529431502,9.74717327,143.98,143.96,7.7104]
[1718529433322,9.74717327,143.98,143.97,2.5699]
[1718529433323,7.17737327,143.98,143.97,2.5699]
[1718529434325,15.4169,144.0,143.97,25.6996]
[1718529434617,23.125,144.0,143.97,27.08350632]
[1718529434823,23.125,144.0,143.97,9.09370632]
[1718529435132,2.5696,143.99,143.97,9.09370632]
[1718529435316,7.7088,143.99,143.97,3.95380632]
[1718529435716,2.5696,143.99,143.97,3.95380632]
[1718529436218,7.7088,143.99,143.97,1.38390632]
[1718529436535,7.7084,144.0,143.98,2.5697]
[1718529437244,7.7084,144.0,143.97,27.08320632]
[1718529437553,15.4167,144.0,143.98,2.5697]
[1718529437714,15.4167,144.0,143.97,27.08320632]
[1718529437915,25.6945,144.0,143.97,27.08320632]
[1718529439166,25.6945,144.0,143.97,24.51340632]
[1718529439330,7.7084,144.0,143.98,2.5697]
[1718529441443,7.7084,144.0,143.97,27.08320632]
[1718529441647,7.7084,144.0,143.98,2.5697]
[1718529442450,7.7084,144.0,143.97,27.08320632]
[1718529442634,15.4167,144.0,143.97,27.08320632]
[1718529442835,7.17381558,144.01,143.99,15.4173]
[1718529443034,9.74301558,144.01,143.99,7.7086]
[1718529443242,23.1219,144.02,143.99,16.80111409]
[1718529443243,25.6911,144.02,143.99,16.80111409]
[1718529443441,25.6929,144.01,143.98,36.2685]
[1718529443968,7.7079,144.01,143.98,43.9778]
[1718529444162,15.4157,144.01,143.99,2.5695]
[1718529444321,2.5694,144.0,143.98,46.5474]
[1718529444723,25.6928,144.01,143.98,43.9778]
[1718529444925,25.6928,144.01,143.99,2.5695]
[1718529445728,7.7079,144.01,143.99,2.5695]
[1718529446461,7.7079,144.01,143.99,7.7087]
[1718529446840,2.5694,144.01,143.99,7.7087]
[1718529448936,28.26478678,144.03,144.0,12.8465]
[1718529448937,30.28508678,144.03,144.0,12.8465]
[1718529449131,2.5691,144.02,144.0,7.7078]
[1718529449360,2.5691,144.02,144.0,15.4161]
[1718529449761,2.5691,144.02,144.0,7.7078]
[1718529451358,2.5691,144.02,144.0,15.416]
[1718529451567,32.85408678,144.03,144.0,15.416]
[1718529451934,32.85408678,144.03,144.01,2.5692]
[1718529452235,14.87168678,144.03,144.01,2.5692]
[1718529452641,22.57838678,144.03,144.01,2.5692]
[1718529452946,22.57838678,144.03,144.0,23.1245]
[1718529453146,22.57838678,144.03,144.01,2.5692]
[1718529453362,9.73368678,144.03,144.01,15.4153]
[1718529453680,14.87148678,144.03,144.01,2.5692]
[1718529454841,9.73368678,144.03,144.01,7.7076]
[1718529457042,14.87148678,144.03,144.01,2.5692]
[1718529457242,22.57818678,144.03,144.0,25.6932]
[1718529457476,2.5691,144.02,144.0,7.7078]
[1718529458062,32.85398678,144.03,144.01,2.5692]
[1718529458271,14.87148678,144.03,144.01,2.5692]
[1718529458969,22.57818678,144.03,144.01,2.5692]
[1718529459365,22.59478678,144.03,143.96,20.85]
[1718529459556,8.2393,144.01,143.99,7.7086]
[1718529460095,7.7078,144.01,143.99,7.7086]
[1718529460260,20.54183764,144.01,143.99,7.7086]
[1718529460585,15.40333764,144.01,143.99,7.7086]
[1718529461278,15.40333764,144.01,143.99,15.4174]
[1718529462063,7.16403764,144.01,144.0,2.5694]
[1718529464664,7.7073,144.02,144.0,2.5694]
[1718529464864,2.5692,144.02,144.01,2.5692]
[1718529465065,31.3598,144.03,144.01,2.5692]
[1718529465476,23.1208,144.03,144.01,2.5692]
[1718529465676,25.6898,144.03,144.01,2.5692]
[1718529465878,2.569,144.02,144.0,25.6941]
[1718529466784,2.569,144.02,144.0,15.4164]
[1718529467094,2.569,144.02,144.0,25.6941]
[1718529467297,25.6898,144.03,144.01,2.5692]
[1718529468570,2.569,144.02,144.0,25.694]
[1718529469259,2.569,144.02,144.0,7.708]
[1718529469458,2.569,144.02,144.0,25.694]
[1718529470190,2.569,144.02,144.0,7.7081]
[1718529471270,7.7072,144.02,144.0,7.7081]
[1718529472194,7.7072,144.02,144.0,2.5693]
[1718529472493,7.16574636,144.04,144.01,7.7076]
[1718529472672,7.16574636,144.04,144.02,2.569]
[1718529472673,14.87204636,144.04,144.02,2.569]
[1718529472869,7.7063,144.04,144.02,2.569]
[1718529473079,2.5689,144.03,144.01,13.3773]
[1718529473284,7.7067,144.03,144.01,2.5691]
[1718529473667,2.5689,144.03,144.01,7.7076]
[1718529474999,23.1188,144.04,144.01,7.7076]
[1718529475176,2.5689,144.03,144.01,7.7076]
[1718529475501,25.6876,144.04,144.01,7.7076]
[1718529475977,25.6876,144.04,144.01,15.4153]
[1718529476598,23.1188,144.04,144.01,15.4153]
[1718529476780,17.9815,144.04,144.02,2.569]
[1718529477390,25.6877,144.04,144.01,25.6923]
[1718529478294,7.7064,144.04,144.02,2.569]
[1718529479704,2.5688,144.04,144.02,7.7071]
[1718529480496,2.5688,144.04,144.02,2.569]
[1718529481102,7.7062,144.04,144.02,2.569]
[1718529481983,2.5688,144.04,144.02,7.7071]
[1718529482394,2.5688,144.04,144.02,2.569]
[1718529482617,2.5688,144.04,144.02,7.7071]
[1718529484211,2.5688,144.04,144.02,2.569]
[1718529484381,2.5688,144.04,144.02,3.18733534]
[1718529485605,2.5688,144.04,144.02,8.32543534]
[1718529486812,2.5688,144.04,144.02,7.7071]
[1718529488017,7.7062,144.04,144.02,2.569]
[1718529488387,2.5688,144.04,144.02,7.7071]
[1718529491086,23.1177,144.05,144.02,7.7071]
[1718529491286,23.1158,144.06,144.03,7.7065]
[1718529491605,2.5686,144.05,144.03,7.7065]
[1718529492409,15.4113,144.05,144.03,2.5689]
[1718529492711,15.4113,144.05,144.02,25.6898]
[1718529492917,7.7057,144.05,144.03,2.5689]
[1718529498393,7.7057,144.05,144.02,25.6898]
[1718529498626,7.7057,144.05,144.03,2.5688]
[1718529498929,9.75018317,144.05,144.03,2.5688]
[1718529500398,9.75018317,144.05,144.03,7.7066]
[1718529501735,7.18158317,144.05,144.03,15.4132]
[1718529501918,2.5685,144.05,144.03,15.4132]
[1718529502101,31.3545,144.06,144.03,15.4132]
[1718529502307,2.5685,144.05,144.03,15.4132]
[1718529502621,31.3545,144.06,144.03,15.4132]
[1718529503423,31.3545,144.06,144.03,25.6888]
[1718529504592,31.3545,144.06,144.04,2.5687]
[1718529504798,31.3545,144.06,144.03,25.6887]
[1718529505315,31.3545,144.06,144.04,2.5687]
[1718529505822,13.3754,144.06,144.04,2.5687]
[1718529506116,7.7054,144.06,144.04,2.5687]
[1718529506322,13.3754,144.06,144.04,2.5687]
[1718529506628,8.2385,144.06,144.04,2.5687]
[1718529506817,2.5685,144.06,144.04,2.5687]
[1718529507000,54.20457221,144.07,144.04,15.4122]
[1718529507197,15.41967221,144.07,144.05,2.5684]
[1718529507404,7.18137221,144.07,144.05,15.411]
[1718529507720,9.74947221,144.07,144.05,15.411]
[1718529507905,9.74947221,144.07,144.05,7.7054]
[1718529508398,9.74947221,144.07,144.05,2.5684]
[1718529509125,14.88587221,144.07,144.05,2.5684]
[1718529509323,7.18137221,144.07,144.05,5.137]
[1718529509499,7.7045,144.07,144.05,2.5684]
[1718529512238,17.9768,144.08,143.99,12.1735]
[1718529512239,2.568,144.08,144.06,2.5683]
[1718529512460,2.568,144.08,144.06,7.705]
[1718529512935,2.568,144.08,144.06,7.7049]
[1718529513426,2.568,144.08,144.06,15.41]
[1718529513931,2.568,144.08,144.06,7.7049]
[1718529514227,25.6791,144.09,144.07,1.38801715]
[1718529514430,25.6791,144.09,144.07,3.95611715]
[1718529514431,7.7037,144.09,144.07,3.95611715]
[1718529514643,2.5678,144.09,144.07,9.09241715]
[1718529515735,7.7035,144.09,144.07,3.95611715]
[1718529517513,2.5678,144.09,144.07,9.09241715]
[1718529519323,7.7034,144.09,144.07,3.95611715]
[1718529520329,2.5678,144.09,144.07,3.95611715]
[1718529521739,2.5678,144.09,144.07,9.09241715]
[1718529522307,2.5678,144.09,144.07,3.95611715]
[1718529522514,7.7035,144.09,144.07,3.95611715]
[1718529522912,5.67,144.09,144.04,20.85]
[1718529523241,7.7048,144.07,144.05,2.5685]
[1718529523904,2.5682,144.07,144.05,7.7055]
[1718529524136,31.3512,144.08,144.05,15.4111]
[1718529524319,7.7037,144.09,144.06,23.1147]
[1718529524527,31.3475,144.1,144.07,15.4088]
[1718529524730,2.5678,144.09,144.07,7.7043]
[1718529525431,2.5678,144.09,144.07,7.7044]
[1718529525933,7.7034,144.09,144.07,2.5681]
[1718529526437,9.81503887,144.11,144.09,2.5677]
[1718529526626,14.95003887,144.11,144.08,12.8397]
[1718529526940,13.3725,144.11,144.09,2.5678]
[1718529527108,13.3725,144.11,144.08,23.1116]
[1718529527109,13.3725,144.11,144.08,25.6794]
[1718529527656,13.3725,144.11,144.09,2.5678]
[1718529527841,13.3725,144.11,144.08,25.6794]
[1718529528012,13.3725,144.11,144.09,2.5678]
[1718529528214,25.21857239,144.12,144.09,23.1103]
[1718529528215,14.94937239,144.12,144.09,23.1103]
[1718529528422,22.65127239,144.12,144.09,25.678]
[1718529528615,10.2682,144.14,144.07,26.52]
[1718529528817,2.5672,144.13,144.11,2.5674]
[1718529529308,2.5673,144.12,144.1,7.7026]
[1718529529736,2.5672,144.13,144.11,2.5674]
[1718529529910,2.5672,144.13,144.11,7.7023]
[1718529530120,14.9474159,144.14,144.11,25.6744]
[1718529530315,20.0813159,144.14,144.11,7.7022]
[1718529530534,28.3184159,144.14,144.11,7.7022]
[1718529530737,2.5671,144.13,144.11,7.7022]
[1718529531129,38.5861159,144.14,144.11,7.7022]
[1718529531636,12.9163159,144.14,144.12,5.1346]
[1718529531819,12.9163159,144.14,144.12,15.4035]
[1718529531820,7.2463159,144.14,144.12,15.4035]
[1718529532338,7.2463159,144.14,144.12,12.8363]
[1718529532508,7.2463159,144.14,144.12,25.6726]
[1718529532834,9.8132159,144.14,144.12,2.5671]
[1718529533450,9.8132159,144.14,144.12,7.7016]
[1718529533609,7.2463159,144.14,144.13,7.7013]
[1718529533952,2.5667,144.15,144.13,7.7013]
[1718529534153,25.6665,144.16,144.13,15.4026]
[1718529534341,2.5668,144.15,144.13,7.7013]
[1718529534649,2.5668,144.15,144.13,15.4026]
[1718529534650,2.5667,144.15,144.13,15.4026]
[1718529535516,2.5667,144.15,144.13,7.7013]
[1718529535722,28.7698,144.16,144.13,7.7013]
[1718529535723,23.0998,144.16,144.13,7.7013]
[1718529536032,2.5667,144.15,144.13,7.7013]
[1718529536219,25.6665,144.16,144.13,15.4026]
[1718529536645,25.6665,144.16,144.14,2.5669]
[1718529536922,15.4,144.16,144.14,2.5669]
[1718529537250,25.6665,144.16,144.13,25.6708]
[1718529538256,2.5667,144.15,144.13,7.7011]
[1718529541735,2.5666,144.16,144.14,15.4013]
[1718529541970,2.5666,144.16,144.14,7.7005]
[1718529542789,7.6998,144.16,144.14,2.5668]
[1718529542943,2.5666,144.16,144.14,2.5668]
[1718529543148,7.6998,144.16,144.14,2.5668]
[1718529544477,2.5666,144.16,144.14,7.7006]
[1718529544781,2.5665,144.17,144.15,2.5667]
[1718529545071,2.5665,144.17,144.15,7.7002]
[1718529545446,2.5665,144.17,144.15,15.4004]
[1718529545644,2.5665,144.17,144.15,7.7002]
[1718529545842,2.5661,144.19,144.17,2.5663]
[1718529546047,15.3964,144.19,144.17,2.5663]
[1718529546265,15.3964,144.19,144.16,25.6648]
[1718529546764,7.6983,144.19,144.17,2.5663]
[1718529546983,7.6978,144.2,144.17,12.8317]
[1718529547178,2.5659,144.2,144.18,3.95118984]
[1718529547467,23.0919,144.21,144.18,3.95118984]
[1718529547468,25.6577,144.21,144.18,9.08348984]
[1718529547673,25.6577,144.21,144.18,16.78218984]
[1718529548076,23.0919,144.21,144.18,16.78218984]
[1718529548457,2.5658,144.2,144.18,16.78218984]
[1718529548979,2.5658,144.2,144.18,9.08348984]
[1718529550197,25.6577,144.21,144.18,9.08348984]
[1718529550346,2.5658,144.2,144.18,9.08348984]
[1718529551054,7.6974,144.21,144.19,2.5659]
[1718529551385,2.5655,144.22,144.19,12.8298]
[1718529551581,7.6965,144.22,144.2,2.5658]
[1718529552093,2.5655,144.22,144.2,2.5658]
[1718529553289,7.6965,144.22,144.2,2.5658]
[1718529554488,15.393,144.22,144.19,25.6596]
[1718529555294,7.6965,144.22,144.2,2.5658]
[1718529555786,7.6965,144.22,144.19,25.6596]
[1718529555968,23.0898,144.22,144.19,17.9618]
[1718529556286,23.0898,144.22,144.19,2.5659]
[1718529556287,2.5657,144.21,144.19,2.5659]
[1718529556496,23.0898,144.22,144.16,44.5113]
[1718529556497,5.67,144.22,144.16,44.5113]
[1718529556659,2.5663,144.18,144.16,2.5664]
[1718529556862,5.67,144.18,144.16,12.8325]
[1718529557169,13.3683,144.19,144.17,2.5663]
[1718529557372,2.5662,144.19,144.17,7.6991]
[1718529557770,13.51377309,144.24,144.18,12.8306]
[1718529557771,7.6972,144.21,144.18,12.8306]
[1718529557975,13.3672,144.21,144.19,2.566]
[1718529558277,21.0644,144.21,144.18,23.0955]
[1718529558460,13.3672,144.21,144.19,2.566]
[1718529558873,8.2358,144.21,144.19,2.566]
[1718529559280,13.3672,144.21,144.19,2.566]
[1718529560582,21.0643,144.21,144.18,25.6615]
[1718529560799,5.67,144.21,144.16,7.6994]
[1718529560975,8.2363,144.18,144.16,2.5665]
[1718529561182,8.2363,144.18,144.16,7.6996]
[1718529561508,5.67,144.18,144.17,2.5664]
[1718529561796,8.2362,144.19,144.17,7.6992]
[1718529563504,8.236,144.19,144.17,7.6992]
[1718529563669,15.47886842,144.2,144.18,2.5661]
[1718529563871,15.47886842,144.2,144.18,7.6985]
[1718529564089,15.47886842,144.2,144.18,2.5661]
[1718529564406,28.30826842,144.2,144.17,25.6631]
[1718529564713,2.566,144.19,144.17,15.3977]
[1718529564871,2.566,144.19,144.17,7.6987]
[1718529565230,8.236,144.19,144.17,7.6987]
[1718529566401,2.5665,144.17,144.14,23.1015]
[1718529566690,5.67,144.16,144.14,25.6683]
[1718529567082,5.67,144.16,144.15,2.5667]
[1718529567493,5.67,144.16,144.15,7.7002]
[1718529567670,5.67,144.16,144.15,2.5667]
[1718529568775,5.67,144.16,144.15,7.7002]
[1718529569499,5.67,144.16,144.15,25.6675]
[1718529570617,13.3701,144.16,144.11,20.85]
[1718529570922,5.67,144.15,144.14,2.5668]
[1718529572607,5.67,144.15,144.14,15.4014]
[1718529572906,12.91474586,144.15,144.14,15.4014]
[1718529573980,12.91474586,144.15,144.14,7.7006]
[1718529574599,12.91474586,144.15,144.14,15.4014]
[1718529575683,12.91474586,144.15,144.14,25.6691]
[1718529582485,5.67,144.16,144.15,2.5667]
[1718529585203,14.94401487,144.17,144.15,2.5667]
[1718529585204,7.24451487,144.17,144.16,2.5665]
[1718529585434,7.24451487,144.17,144.15,23.1008]
[1718529585435,9.81091487,144.17,144.15,25.6674]
[1718529585602,32.91451487,144.17,144.15,25.6674]
[1718529585804,35.48091487,144.17,144.15,25.6674]
[1718529586634,40.61371487,144.17,144.15,7.7001]
[1718529587123,48.31291487,144.17,144.15,2.5666]
[1718529587301,2.5665,144.16,144.15,2.5666]
[1718529587508,2.5665,144.16,144.14,25.6685]